[Event "Bay Area Open 2019"]
[Site "Burlingame"]
[Date "2019.01.05"]
[Round "6"]
[White "Boros, Denes"]
[Black "Stukopin, Andrey"]
[Result "0-1"]
[ECO "E11"]
[WhiteElo "2442"]
[BlackElo "2565"]
[Annotator "ChessBase"]
[PlyCount "90"]
[EventDate "2019.01.01"]
[EventType "swiss"]
[EventCountry "USA"]
[SourceTitle "playchess.com"]
[Source "ChessBase"]
[SourceQuality "1"]
[TimeControl "40/5400+30:1800+30"]

1. d4 {[%emt 0:03:14]} Nf6 {[%emt 0:01:50]} 2. c4 {[%emt 0:00:40]} e6 {[%emt 0:01:13]} 3. Nf3 {[%emt 0:01:01]} d5 {[%emt 0:00:05]} 4. g3 {[%emt 0:00:10]} Bb4+ {[%emt 0:00:23]} 5. Bd2 {[%emt 0:00:09]} Be7 {[%emt 0:00:07]} 6. Bg2 {[%emt 0:00:09]} c6 {[%emt 0:00:06]} 7. Qc2 {[%emt 0:00:29]} Nbd7 {[%emt 0:00:05]} 8. a4 {[%emt 0:00:49]} a5 {[%emt 0:09:08]} 9. O-O {[%emt 0:00:33]} O-O {[%emt 0:04:13]} 10. Rc1 {[%emt 0:02:37]} Ne4 {[%emt 0:11:45]} 11. Be1 {[%emt 0:02:39]} f5 {[%emt 0:00:14]} 12. e3 {[%emt 0:02:22]} Kh8 {[%emt 0:03:17]} 13. Nbd2 {[%emt 0:01:00]} Bd6 {[%emt 0:01:35]} 14. Qd1 {[%emt 0:04:28]} Qe7 {[%emt 0:13:31]} 15. Nb3 {[%emt 0:05:42]} Bc7 {[%emt 0:03:35]} 16. Nfd2 {[%emt 0:06:03]} Ndf6 {[%emt 0:00:41]} 17. Nf3 {[%emt 0:02:42]} g5 {[%emt 0:04:22]} 18. Ne5 {[%emt 0:02:31]} g4 {[%emt 0:00:06]} 19. Nd2 {[%emt 0:00:35]} Ng5 {[%emt 0:04:41]} 20. Rab1 {[%emt 0:08:06]} Bd7 {[%emt 0:04:37]} 21. Qb3 {[%emt 0:06:52]} Rfb8 {[%emt 0:06:31]} 22. Qc2 {[%emt 0:07:46]} Nf7 {[%emt 0:01:39]} 23. f4 {[%emt 0:10:34]} gxf3 {[%emt 0:02:01]} 24. Ndxf3 {[%emt 0:00:16]} Ng4 {[%emt 0:01:18]} 25. Nxd7 {[%emt 0:05:37]} Qxd7 {[%emt 0:00:06]} 26. Qe2 {[%emt 0:00:42]} Bd6 {[%emt 0:02:11]} 27. Bc3 {[%emt 0:00:22]} Qe7 {[%emt 0:02:22]} 28. Bh3 {[%emt 0:03:00]} Rg8 {[%emt 0:01:29]} 29. Bxg4 {[%emt 0:00:30]} Rxg4 {[%emt 0:01:49]} 30. Kh1 {[%emt 0:00:41]} Ng5 {[%emt 0:01:06]} 31. cxd5 {[%emt 0:01:03]} exd5 {[%emt 0:09:27]} 32. Ne5 {[%emt 0:01:30]} Bxe5 {[%emt 0:00:05]} 33. dxe5 {[%emt 0:00:03]} Ne4 {[%emt 0:00:04]} 34. Rf1 {[%emt 0:01:15]} Rxg3 {[%emt 0:01:40]} 35. Rxf5 {[%emt 0:04:18]} Rag8 {[%emt 0:00:19]} 36. e6+ {[%emt 0:01:39]} Nxc3 {[%emt 0:00:12]} 37. bxc3 {[%emt 0:00:12]} Qxe6 {[%emt 0:00:33]} 38. Qd3 {[%emt 0:01:59]} R3g7 {[%emt 0:05:36]} 39. Rf4 {[%emt 0:02:04]} Qh3 {[%emt 0:01:10]} 40. Qd2 {[%emt 0:00:02]} c5 {[%emt 0:00:57]} 41. Qxd5 {[%emt 0:32:28]} Qxe3 {[%emt 0:30:08]} 42. Rff1 {[%emt 0:00:12]} Rg5 {[%emt 0:00:00]} 43. Rbe1 {[%emt 0:00:00]} Qxc3 {[%emt 0:00:00]} 44. Qxb7 {[%emt 0:00:00]} Qd2 {[%emt 0:00:00]} 45. Qf3 {[%emt 0:00:00]} Rf5 {[%emt 0:00:00]} 0-1